bitfinex-derivatives/quotes_ETHF0:USTF0_20250702
["timestamp","ask_amount","ask_price","bid_price","bid_amount"]
[1751443420851,0.81629,2449.5,2449.4,0.7001]
[1751443421955,0.81632,2449.4,2449.3,40.8]
[1751443422251,25.88532,2449.4,2449.3,40.8]
[1751443422652,25.88532,2449.4,2449.3,43.97543235]
[1751443422854,25.88532,2449.4,2449.3,46.01643235]
[1751443426660,25.88532,2449.4,2449.3,45.18721014]
[1751443427060,25.88532,2449.4,2449.3,42.841]
[1751443427850,0.81632,2449.4,2449.3,42.841]
[1751443428054,0.81632,2449.4,2449.3,47.40663235]
[1751443429262,0.81632,2449.4,2449.3,43.67022221]
[1751443429856,0.81632,2449.4,2449.3,45.06042221]
[1751443430267,25.84732,2449.4,2449.3,45.06042221]
[1751443431075,64.695,2449.7,2449.3,45.06042221]
[1751443431266,64.695,2449.7,2449.6,4.38721014]
[1751443431267,59.60925,2449.7,2449.6,4.38721014]
[1751443431572,25.028,2449.7,2449.6,4.38721014]
[1751443431772,25.028,2449.7,2449.6,7.95613235]
[1751443431972,25.034,2449.7,2449.6,7.95613235]
[1751443432471,25.85022,2449.7,2449.6,7.95613235]
[1751443432771,25.033,2449.7,2449.6,13.27647334]
[1751443433271,25.84922,2449.7,2449.6,13.27647334]
[1751443434270,25.84922,2449.7,2449.6,7.95613235]
[1751443435677,0.81622,2449.7,2449.6,7.95613235]
[1751443436071,25.83022,2449.7,2449.6,7.95613235]
[1751443436273,25.014,2449.7,2449.6,14.00038814]
[1751443436470,25.014,2449.7,2449.6,13.18414814]
[1751443436672,25.012,2449.8,2449.6,13.18414814]
[1751443436874,25.82821,2449.8,2449.7,3.3996]
[1751443437179,11.648,2450.2,2449.7,8.63477775]
[1751443437477,25.82509,2450.1,2450.0,4.38721014]
[1751443437874,25.82509,2450.1,2450.0,2.34621014]
[1751443438678,0.81615,2449.9,2449.8,1.3304]
[1751443439070,0.81615,2449.9,2449.8,3.3714]
[1751443441077,0.81615,2449.9,2449.8,2.041]
[1751443441676,0.81619,2449.8,2449.7,2.34621014]
[1751443441878,11.647,2450.1,2449.7,3.17543235]
[1751443442074,11.647,2450.1,2450.0,4.38721014]
[1751443442277,36.654,2450.1,2450.0,4.38721014]
[1751443442478,36.654,2450.1,2450.0,6.03255235]
[1751443442980,11.647,2450.1,2450.0,6.03255235]
[1751443443279,36.651,2450.1,2450.0,6.03255235]
[1751443443783,11.647,2450.1,2450.0,6.03255235]
[1751443443988,36.657,2450.1,2450.0,6.03255235]
[1751443444684,36.657,2450.1,2450.0,5.21643235]
[1751443444984,37.47309,2450.1,2450.0,5.21643235]
[1751443445174,25.01,2450.1,2450.0,6.70295235]
[1751443445579,11.647,2450.3,2450.1,0.81608]
[1751443445780,11.647,2450.3,2450.2,5.20326014]
[1751443446079,36.652,2450.3,2450.2,5.20326014]
[1751443446379,36.652,2450.3,2450.2,6.03248235]
[1751443446582,58.77,2450.4,2450.2,6.03248235]
[1751443446882,25.005,2450.3,2450.2,3.17543235]
[1751443447282,25.005,2450.3,2450.2,5.21643235]
[1751443447584,25.81802,2450.3,2450.2,4.38721014]
[1751443447781,58.77,2450.4,2450.2,5.21643235]
[1751443448087,58.77,2450.4,2450.3,2.85702]
[1751443448277,83.767,2450.4,2450.3,10.48741392]
[1751443448478,83.767,2450.4,2450.3,51.28741392]
[1751443449587,83.766,2450.4,2450.3,51.28741392]
[1751443450186,24.989,2450.4,2450.3,52.11663613]
[1751443451088,12.46093,2450.6,2450.4,0.81598]
[1751443451386,12.46093,2450.6,2450.5,5.05691014]
[1751443451689,37.44493,2450.6,2450.5,5.05691014]
[1751443451888,37.44493,2450.6,2450.5,3.01591014]
[1751443452285,0.7011,2450.9,2450.5,3.01591014]
[1751443452286,0.81587,2450.8,2450.6,0.81591]
[1751443452585,0.81592,2450.6,2450.5,5.05691014]
[1751443452982,0.81599,2450.4,2450.3,43.14621014]
[1751443453284,25.79299,2450.4,2450.3,44.67063235]
[1751443453484,25.79299,2450.4,2450.3,46.71163235]
[1751443453883,0.81599,2450.4,2450.3,46.71163235]
[1751443454078,25.79099,2450.4,2450.3,46.71163235]
[1751443456084,0.81599,2450.4,2450.3,46.71163235]
[1751443456285,24.961,2450.4,2450.3,47.52765235]
[1751443456995,0.81597,2450.5,2450.3,46.71163235]
[1751443457291,11.609,2450.6,2450.4,2.041]
[1751443457483,12.42492,2450.6,2450.5,2.34621014]
[1751443457687,0.7011,2450.9,2450.5,2.041]
[1751443457992,11.609,2450.8,2450.5,5.20316014]
[1751443458187,0.81592,2450.6,2450.5,4.38721014]
[1751443458786,25.76792,2450.6,2450.5,4.38721014]
[1751443458990,24.95,2450.6,2450.5,6.03236235]
[1751443459295,25.76592,2450.6,2450.5,5.21643235]
[1751443459889,25.76592,2450.6,2450.5,6.03238235]
[1751443460195,25.76592,2450.6,2450.5,5.21643235]
[1751443461389,11.608,2450.9,2450.5,15.50371037]
[1751443461695,11.608,2451.3,2451.2,0.81572]
[1751443461889,2.162,2451.7,2451.2,4.38721014]
[1751443462094,13.14145,2451.7,2451.6,2.34621014]
[1751443462296,38.11445,2451.7,2451.6,2.34621014]
[1751443462503,13.80836662,2451.7,2451.6,43.14621014]
[1751443462796,36.581,2451.7,2451.6,45.18721014]
[1751443462996,36.581,2451.7,2451.6,46.83202235]
[1751443463196,58.742,2451.8,2451.6,46.01643235]
[1751443463393,25.79155,2451.7,2451.6,40.8]
[1751443464997,27.19435,2451.7,2451.6,40.8]
[1751443466199,0.81565,2451.4,2451.3,0.691]
[1751443466501,0.81575,2451.1,2451.0,2.34621014]
[1751443466801,0.81575,2451.1,2451.0,41.5046]
[1751443467800,0.81594,2450.6,2450.4,2.34621014]
[1751443468003,25.78392,2450.6,2450.5,0.6984]
[1751443468298,25.78392,2450.6,2450.5,43.5394]
[1751443468494,25.78392,2450.6,2450.5,44.36862221]
[1751443469702,25.78392,2450.6,2450.5,46.71483235]
[1751443470494,25.78392,2450.6,2450.5,45.88561014]
[1751443471497,25.79492,2450.6,2450.5,45.88561014]
[1751443473397,0.81592,2450.6,2450.5,46.71483235]
[1751443473602,25.79292,2450.6,2450.5,46.71483235]
[1751443473901,25.79292,2450.6,2450.5,48.06843235]
[1751443474295,25.79292,2450.6,2450.5,44.36862221]
[1751443474492,25.79292,2450.6,2450.5,43.67022221]
[1751443475697,25.79292,2450.6,2450.5,42.841]
[1751443477304,25.79292,2450.6,2450.5,45.18721014]
[1751443479510,0.6802,2450.9,2450.5,45.18721014]
[1751443479703,37.39985,2450.8,2450.7,2.34621014]
[1751443480799,0.81592,2450.6,2450.5,43.14621014]
[1751443481006,0.81592,2450.6,2450.5,43.97543235]
[1751443481209,0.81592,2450.6,2450.5,46.01643235]
[1751443481606,0.81592,2450.6,2450.5,46.83238235]
[1751443481806,24.977,2450.6,2450.5,46.83238235]
[1751443482801,24.977,2450.6,2450.5,48.25488235]
[1751443483006,25.79292,2450.6,2450.5,48.25488235]
[1751443483206,25.79292,2450.6,2450.5,47.43893235]
[1751443484404,24.977,2450.6,2450.5,48.25488235]
[1751443484602,24.968,2450.6,2450.5,48.25488235]
[1751443484808,4.38545014,2451.3,2450.5,47.43893235]
[1751443485006,0.81582,2450.9,2450.8,2.34621014]
[1751443485214,0.81582,2450.9,2450.8,3.03781014]
[1751443486513,0.81582,2450.9,2450.8,0.6916]
[1751443487013,0.81592,2450.6,2450.5,41.61595]
[1751443487214,0.81592,2450.6,2450.5,44.79138235]
[1751443487414,24.957,2450.7,2450.6,0.81592]
[1751443487614,24.957,2450.7,2450.6,4.31032]
[1751443488211,2.03921,2451.4,2450.6,4.32362221]
[1751443488416,0.81578,2451.1,2451.0,2.34621014]
[1751443488609,24.972,2451.1,2451.0,5.20299014]
[1751443489417,24.968,2451.1,2451.0,5.20299014]
[1751443489814,11.606,2451.4,2451.3,0.81569]
[1751443490010,36.574,2451.4,2451.3,0.81569]
[1751443490411,11.606,2451.4,2451.3,0.81569]
[1751443490717,36.575,2451.4,2451.3,0.81569]
[1751443491416,36.575,2451.4,2451.2,2.34621014]
[1751443491612,37.39066,2451.4,2451.2,5.20291014]
[1751443493015,0.81569,2451.3,2451.2,4.38721014]
[1751443493413,0.81569,2451.3,2451.2,2.34621014]
[1751443493913,25.77369,2451.3,2451.2,2.34621014]
[1751443494117,24.958,2451.3,2451.2,3.16193014]
[1751443494313,11.605,2451.4,2451.3,0.81569]
[1751443494513,36.556,2451.4,2451.3,0.81569]
[1751443494920,36.556,2451.4,2451.3,2.23429]
[1751443495514,24.949,2451.4,2451.3,1.4186]
[1751443495720,24.949,2451.4,2451.3,2.94859]
[1751443496217,24.943,2451.4,2451.3,4.98959]
[1751443498412,24.943,2451.4,2451.3,3.57099]
[1751443499228,24.943,2451.4,2451.3,2.85669]
[1751443499415,25.75865,2451.4,2451.3,2.041]
[1751443500117,25.75865,2451.4,2451.3,2.85669]
[1751443500315,24.943,2451.4,2451.3,2.85669]
[1751443500618,25.75865,2451.4,2451.3,2.85669]
[1751443500815,0.81564,2451.5,2451.3,2.85669]
[1751443501016,24.939,2451.4,2451.3,2.85669]
[1751443501220,25.75465,2451.4,2451.3,2.041]
[1751443501623,24.939,2451.4,2451.3,2.85669]
[1751443502418,25.75465,2451.4,2451.3,2.041]
[1751443503113,25.75465,2451.4,2451.3,2.85669]
[1751443503316,25.75465,2451.4,2451.3,0.81569]
[1751443503720,24.939,2451.4,2451.3,0.81569]
[1751443503918,25.75465,2451.4,2451.3,0.81569]
[1751443504925,0.81569,2451.3,2451.2,3.16191014]
[1751443505124,25.75468,2451.4,2451.3,2.041]
[1751443505525,0.81569,2451.3,2451.2,3.16193014]
[1751443505729,0.81572,2451.2,2451.1,0.6657]
[1751443506022,0.8158,2451.0,2450.9,0.81581]
[1751443506219,25.7538,2451.0,2450.9,3.56471]
[1751443506423,25.7538,2451.0,2450.9,1.52371]
[1751443507220,25.7538,2451.0,2450.9,0.7079]
[1751443507624,25.7538,2451.0,2450.7,2.097]
[1751443507625,0.81585,2450.8,2450.7,0.81589]
[1751443507823,0.81585,2450.8,2450.7,1.52379]
[1751443508123,0.81584,2450.9,2450.7,3.87000014]
[1751443508527,5.902,2451.1,2450.7,3.05411014]
[1751443508728,37.35679,2451.0,2450.9,2.34621014]
[1751443509426,0.81579,2451.0,2450.9,2.34621014]
[1751443509625,36.542,2451.0,2450.9,3.16201014]
[1751443509833,24.939,2451.0,2450.9,6.03223235]
[1751443510031,25.75479,2451.0,2450.9,5.21643235]
[1751443511428,24.939,2451.0,2450.9,6.03225235]
[1751443512428,1.3351,2451.4,2450.9,6.03225235]
[1751443512429,10.28713014,2451.7,2450.9,5.21643235]
[1751443512732,0.81565,2451.5,2451.4,2.34621014]
[1751443513333,0.81565,2451.5,2451.4,3.01621014]
[1751443513635,25.75465,2451.5,2451.4,3.01621014]
[1751443513935,0.81565,2451.5,2451.4,3.01621014]
[1751443514137,37.34565,2451.5,2451.4,3.01621014]
[1751443514429,37.34565,2451.5,2451.4,3.83186014]
[1751443514935,37.34465,2451.5,2451.4,3.83186014]
[1751443515332,37.34465,2451.5,2451.4,3.01621014]
[1751443516323,37.34465,2451.5,2451.4,0.67]
[1751443517129,0.81569,2451.3,2451.2,2.34621014]
[1751443517328,25.75369,2451.3,2451.2,3.87863235]
[1751443517529,24.938,2451.3,2451.2,6.73535235]
[1751443517828,25.75369,2451.3,2451.2,3.57342221]
[1751443518028,0.8158,2451.0,2450.8,3.04351014]
[1751443518228,0.81578,2451.1,2450.9,2.85682]
[1751443518430,24.938,2451.0,2450.9,2.85682]
[1751443518633,24.938,2451.0,2450.9,5.20303014]
[1751443519031,0.81575,2451.1,2451.0,0.81578]
[1751443519236,24.937,2451.1,2451.0,1.49948]
[1751443519736,25.75275,2451.1,2451.0,0.6837]
[1751443521432,24.937,2451.1,2450.8,0.6973]
[1751443521640,0.81579,2451.0,2450.9,2.041]
[1751443522136,0.81585,2450.8,2450.7,3.16210014]
[1751443522336,25.75285,2450.8,2450.7,3.99132235]
[1751443522536,25.75285,2450.8,2450.7,6.03232235]
[1751443522736,24.937,2450.8,2450.7,6.03232235]
[1751443522933,24.937,2450.8,2450.7,5.21643235]
[1751443523124,24.937,2450.8,2450.7,6.03232235]
[1751443524337,25.75285,2450.8,2450.7,4.38721014]
[1751443524531,25.75285,2450.8,2450.7,5.21643235]
[1751443525336,25.75285,2450.8,2450.7,4.38721014]
[1751443525839,25.75285,2450.8,2450.7,5.20310014]
[1751443526440,0.81584,2450.9,2450.8,0.81585]
[1751443526634,6.6101,2451.3,2450.9,2.041]
[1751443526835,0.81577,2451.1,2450.9,2.85681]
[1751443527046,0.81577,2451.1,2451.0,3.06211014]
[1751443527229,0.81577,2451.1,2451.0,0.7159]
[1751443527539,0.81577,2451.1,2451.0,3.06211014]
[1751443528538,0.81577,2451.1,2451.0,3.87790014]
[1751443529340,0.81577,2451.1,2451.0,3.06211014]
[1751443532338,25.75377,2451.1,2451.0,3.87790014]
[1751443532539,25.75375,2451.1,2451.0,3.06211014]
[1751443533845,25.75375,2451.1,2451.0,0.7159]
[1751443534646,0.81582,2450.9,2450.8,2.34621014]
[1751443534842,0.81582,2450.9,2450.8,4.38721014]
[1751443535040,0.81585,2450.8,2450.7,0.6599]
[1751443535241,0.81585,2450.8,2450.6,3.07171014]
[1751443535242,0.81589,2450.7,2450.6,3.07171014]
[1751443535540,0.81589,2450.7,2450.4,2.34621014]
[1751443535745,0.81595,2450.5,2450.4,3.17543235]
[1751443535946,25.75295,2450.5,2450.4,3.17543235]
[1751443536244,25.75295,2450.5,2450.4,5.21643235]
[1751443536648,25.75295,2450.5,2450.4,5.90893235]
[1751443537141,25.75295,2450.5,2450.4,6.72492235]
[1751443537642,25.75295,2450.5,2450.4,5.90893235]
[1751443538537,25.75295,2450.5,2450.4,0.6925]
[1751443539046,25.75295,2450.5,2450.4,3.03871014]
[1751443539242,24.937,2450.5,2450.4,5.07971014]
[1751443539447,24.937,2450.5,2450.4,7.12611014]
[1751443539644,25.75295,2450.5,2450.4,7.12611014]
[1751443539845,25.75295,2450.5,2450.4,5.78181014]
[1751443542547,24.937,2450.5,2450.4,6.61103235]
[1751443542848,0.00612145,2450.8,2450.7,0.81589]
[1751443543050,0.00612145,2450.8,2450.7,2.85689]
[1751443543347,0.00612145,2450.8,2450.7,3.68611221]
[1751443543547,0.00612145,2450.8,2450.7,5.09341221]
[1751443545949,11.59,2451.3,2450.7,14.66941438]
[1751443546144,11.59,2451.3,2451.2,0.81572]
[1751443546346,36.526,2451.3,2451.2,2.85672]
[1751443546551,37.34169,2451.3,2451.2,5.21643235]
[1751443546850,37.34169,2451.3,2451.2,2.87022221]
[1751443546851,0.81569,2451.3,2451.2,2.87022221]
[1751443547047,25.75169,2451.3,2451.2,5.21643235]
[1751443547248,24.936,2451.3,2451.0,1.3871]
[1751443547448,0.81572,2451.2,2451.1,4.38721014]
[1751443547954,0.81572,2451.2,2451.1,2.34621014]
[1751443549149,0.81572,2451.2,2451.1,3.04811014]
[1751443549553,25.75171,2451.3,2451.1,3.86386014]
[1751443550256,25.75171,2451.3,2451.1,3.86385014]
[1751443550752,25.75171,2451.3,2451.1,5.90485014]
[1751443551052,0.81572,2451.2,2451.1,5.08911014]
[1751443551249,25.75072,2451.2,2451.1,5.08911014]
[1751443551750,25.75072,2451.2,2451.1,3.04811014]
[1751443553157,25.75072,2451.2,2451.1,0.7019]
[1751443554756,25.75072,2451.2,2451.1,3.04811014]
[1751443555252,25.75072,2451.2,2451.1,3.86386014]
[1751443555448,25.75072,2451.2,2451.1,3.04811014]
[1751443555856,0.81572,2451.2,2451.1,3.04811014]
[1751443556052,25.74672,2451.2,2451.1,3.04811014]
[1751443556858,24.931,2451.2,2451.1,3.86386014]
[1751443557159,25.74672,2451.2,2451.1,3.86386014]
[1751443557567,24.931,2451.2,2451.1,3.86386014]
[1751443558054,25.74672,2451.2,2451.1,3.86386014]
[1751443558259,25.74672,2451.2,2451.1,3.04811014]
[1751443558461,25.74672,2451.2,2451.1,3.86386014]
[1751443559060,24.931,2451.2,2451.1,3.86386014]
[1751443559461,24.931,2451.2,2451.1,5.90486014]
[1751443559963,25.74672,2451.2,2451.1,2.7429]
[1751443560260,25.74672,2451.2,2451.1,5.08911014]
[1751443561557,24.931,2451.2,2450.8,2.34621014]
[1751443561758,0.81575,2451.1,2451.0,2.041]
[1751443562158,0.81579,2451.0,2450.9,0.6726]
[1751443562463,25.74479,2451.0,2450.9,3.01881014]
[1751443563760,24.929,2451.0,2450.5,3.02281014]
[1751443564064,0.81589,2450.7,2450.6,2.041]
[1751443564258,25.74389,2450.7,2450.6,2.041]
[1751443564459,0.81592,2450.6,2450.5,0.7224]
[1751443564759,0.81592,2450.6,2450.3,0.00612145]
[1751443564760,0.81599,2450.4,2450.3,0.00612145]
[1751443564965,25.74399,2450.4,2450.3,2.04712145]
[1751443565164,24.928,2450.4,2450.3,2.04712145]
[1751443565460,25.74399,2450.4,2450.3,2.04712145]
[1751443566659,7.9557,2450.7,2450.3,2.87634366]
[1751443566660,24.93,2450.6,2450.3,2.87634366]
[1751443566860,6.71791,2450.7,2450.6,4.38721014]
[1751443566861,6.71789,2450.7,2450.6,4.38721014]
[1751443567065,31.64689,2450.7,2450.6,4.38721014]
[1751443567263,31.64689,2450.7,2450.6,2.34621014]
[1751443567954,0.81592,2450.6,2450.4,0.81598]
[1751443568161,0.81592,2450.6,2450.5,2.34621014]
[1751443568361,0.81592,2450.6,2450.5,4.38721014]
[1751443569664,25.74491,2450.7,2450.5,4.38721014]
[1751443569964,25.74491,2450.7,2450.6,2.041]
[1751443570360,0.81592,2450.6,2450.5,2.34621014]
[1751443570761,0.81592,2450.6,2450.5,2.041]
[1751443572366,0.81599,2450.4,2450.3,0.00612145]
[1751443572658,39.68020014,2450.4,2450.3,1.45e-06]
[1751443572864,44.68020014,2450.4,2450.3,1.45e-06]
[1751443573263,50.58220014,2450.4,2450.3,1.45e-06]
[1751443573963,51.90020014,2450.4,2450.3,1.45e-06]
[1751443574359,52.23100743,2450.4,2450.3,1.45e-06]
[1751443574766,53.69657653,2450.4,2450.3,1.45e-06]
[1751443576368,52.23100743,2450.4,2450.3,1.45e-06]
[1751443576667,15.71300743,2450.4,2450.3,1.45e-06]
[1751443576865,52.23300743,2450.4,2450.3,1.45e-06]
[1751443577066,52.96100743,2450.4,2450.3,1.45e-06]
[1751443577469,8.76399,2450.4,2450.3,1.45e-06]
[1751443577770,47.63020014,2450.4,2450.3,1.45e-06]
[1751443578468,52.63220014,2450.4,2450.3,1.45e-06]
[1751443581365,47.63220014,2450.4,2450.3,1.45e-06]
[1751443582370,52.63220014,2450.4,2450.3,1.45e-06]
[1751443584369,47.63220014,2450.4,2450.3,1.45e-06]
[1751443584561,0.81619,2449.8,2449.7,0.7102]
[1751443584762,45.58840014,2449.8,2449.7,0.7102]
[1751443586375,43.24219,2449.8,2449.7,0.7102]
[1751443586674,43.24219,2449.8,2449.7,3.58042221]
[1751443587473,43.24519,2449.8,2449.7,3.58042221]
[1751443592378,6.71819,2449.8,2449.7,5.92663235]
[1751443592676,31.65419,2449.8,2449.7,5.92663235]
[1751443593072,5.902,2449.8,2449.7,11.74285235]
[1751443593268,2.88257779,2449.8,2449.7,10.91363014]
[1751443593472,11.591,2449.9,2449.8,0.81619]
[1751443593681,0.81608,2450.2,2450.0,0.81609]
[1751443593879,0.81608,2450.2,2450.1,6.40391014]
[1751443594079,0.81608,2450.2,2450.1,7.22000014]
[1751443594381,24.936,2450.2,2450.1,7.21998014]
[1751443594576,25.75205,2450.2,2450.1,7.21998014]
[1751443594872,25.75205,2450.2,2450.1,6.40391014]
[1751443595381,25.75205,2450.2,2450.1,5.70301014]
[1751443595585,25.75205,2450.2,2450.1,6.40221014]
[1751443595877,25.75205,2450.2,2450.1,4.056]
[1751443596677,29.85875779,2450.2,2449.0,4.50043642]
[1751443596982,29.85875779,2450.2,2449.9,2.041]
[1751443596983,0.81612,2450.0,2449.9,2.041]
[1751443597183,25.74912,2450.0,2449.9,2.041]
[1751443597378,37.33912,2450.0,2449.9,2.041]
[1751443597778,37.33912,2450.0,2449.9,3.4222]
[1751443598881,2.88257779,2450.2,2449.9,12.92263642]
[1751443599080,37.33911,2450.1,2450.0,0.665]
[1751443599281,37.33911,2450.1,2450.0,1.9833]
[1751443599481,37.33911,2450.1,2450.0,4.0243]
[1751443599981,25.74911,2450.1,2450.0,4.0243]
[1751443600783,24.933,2450.1,2450.0,4.84042]
[1751443601101,25.74909,2450.1,2450.0,4.0243]
[1751443601583,0.81608,2450.2,2450.0,9.0243]
[1751443601784,11.59,2450.3,2450.1,2.85709]
[1751443601986,12.40602,2450.3,2450.2,1.3543]
[1751443602187,12.40602,2450.3,2450.2,4.063]
[1751443602785,37.33802,2450.3,2450.2,4.063]
[1751443603982,25.74802,2450.3,2450.2,4.063]
[1751443606287,25.74602,2450.3,2450.2,4.063]
[1751443607589,0.81602,2450.3,2450.2,4.063]
[1751443607795,58.762,2450.7,2450.3,0.816]
[1751443608083,12.40299,2450.4,2450.3,1.3723]
[1751443608282,37.33299,2450.4,2450.3,42.1723]
[1751443608487,37.33299,2450.4,2450.3,44.2133]
[1751443608891,37.33299,2450.4,2450.3,42.841]
[1751443609387,37.33299,2450.4,2450.3,40.8]
[1751443609884,0.81602,2450.3,2450.2,0.6677]
[1751443610591,0.81602,2450.3,2450.2,2.7087]
[1751443611289,1.51422,2450.3,2450.2,2.7087]
[1751443611492,1.51422,2450.3,2450.2,2.041]
[1751443611792,0.81612,2450.0,2449.9,0.6903]
[1751443612091,24.929,2450.0,2449.9,1.50645]
[1751443612291,24.929,2450.0,2449.9,3.54745]
[1751443612487,24.929,2450.0,2449.9,5.66415]
[1751443612688,25.74512,2450.0,2449.9,5.66415]
[1751443614187,24.929,2450.0,2449.9,5.66415]
[1751443614491,25.74512,2450.0,2449.9,4.848]
[1751443615187,25.74512,2450.0,2449.9,2.041]
[1751443617188,25.74512,2450.0,2449.9,2.85715]
[1751443617394,25.74512,2450.0,2449.9,2.041]
[1751443619681,25.74512,2450.0,2449.9,4.38584486]
[1751443619682,0.81612,2450.0,2449.9,4.38584486]
[1751443619888,25.74412,2450.0,2449.9,4.38584486]
[1751443620093,25.74412,2450.0,2449.9,5.20199486]
[1751443620297,11.587,2450.1,2450.0,0.81612]
[1751443620592,2.88257779,2450.4,2450.3,0.81602]
[1751443620897,2.88257779,2450.4,2450.3,2.85702]
[1751443621192,27.81057779,2450.4,2450.3,2.85702]
[1751443621389,27.81057779,2450.4,2450.3,4.17792]
[1751443621590,24.928,2450.4,2450.3,4.17792]
[1751443622188,25.74399,2450.4,2450.3,4.17792]
[1751443622585,25.74399,2450.4,2450.3,3.3619]
[1751443623595,25.74399,2450.4,2450.3,2.041]
[1751443625391,24.928,2450.4,2450.0,0.7006]
[1751443625591,0.81602,2450.3,2450.2,2.041]
[1751443625986,0.81609,2450.1,2450.0,0.7006]
[1751443626193,25.74109,2450.1,2449.9,5.27958486]
[1751443626394,25.74109,2450.1,2450.0,2.041]
[1751443626897,25.74109,2450.1,2450.0,2.85712]
[1751443627495,25.74109,2450.1,2450.0,2.041]
[1751443628400,25.74109,2450.1,2450.0,2.85712]
[1751443629097,25.74109,2450.1,2450.0,2.041]
[1751443629902,25.74109,2450.1,2450.0,2.85712]
[1751443630103,24.925,2450.1,2450.0,2.85712]
[1751443630503,25.74109,2450.1,2450.0,2.85712]
[1751443630997,25.74109,2450.1,2450.0,2.041]
[1751443631903,24.925,2450.1,2450.0,2.85712]
[1751443632105,11.586,2450.4,2450.3,0.81602]
[1751443632298,11.586,2450.4,2450.3,5.20186486]
[1751443632504,36.51,2450.4,2450.3,46.00186486]
[1751443632696,36.51,2450.4,2450.3,43.96086486]
[1751443632895,36.51,2450.4,2450.3,46.00186486]
[1751443633099,36.51,2450.4,2450.3,46.69346486]
[1751443633797,36.51,2450.4,2450.3,48.84736955]
[1751443636005,36.51,2450.4,2450.3,49.53096955]
[1751443638310,37.32599,2450.4,2450.3,48.71494955]
[1751443638699,36.51,2450.4,2450.3,49.53096955]
[1751443638904,36.51,2450.4,2450.3,50.93376955]
[1751443645313,37.32599,2450.4,2450.3,50.93376955]
[1751443645613,36.51,2450.4,2450.3,50.93376955]
[1751443650724,37.32599,2450.4,2450.3,43.65702]
[1751443650915,36.51,2450.4,2450.3,43.65702]
[1751443651114,37.32599,2450.4,2450.3,43.65702]
[1751443651826,36.51,2450.4,2450.3,43.65702]
[1751443652926,11.586,2450.4,2450.3,43.65702]
[1751443653125,36.501,2450.4,2450.3,48.15576955]
[1751443653422,58.762,2450.7,2450.6,0.81592]
[1751443653628,83.677,2450.7,2450.6,7.35566955]
[1751443653924,24.915,2450.7,2450.6,12.64559249]
[1751443654521,24.915,2450.7,2450.6,14.08369249]
[1751443655022,25.73089,2450.7,2450.6,13.26777249]
[1751443655624,25.73089,2450.7,2450.6,2.041]
[1751443660925,24.915,2450.7,2450.5,3.00511508]
[1751443661223,24.915,2450.7,2450.2,2.34311508]
[1751443661423,0.81595,2450.5,2450.4,2.041]
[1751443661622,0.81595,2450.5,2449.9,1.3419]
[1751443661623,0.81615,2449.9,2449.8,2.76851581]
[1751443661828,0.81662,2448.5,2448.0,1.3419]
[1751443662022,0.81667,2448.4,2448.0,1.3419]
[1751443662331,11.582,2448.5,2448.4,2.0404]
[1751443662630,36.754,2448.5,2448.3,2.34311508]
[1751443662827,36.754,2448.5,2448.1,46.04728901]
[1751443662828,37.57062,2448.5,2448.4,4.155]
[1751443663030,0.81684,2447.9,2447.7,12.9845516]
[1751443663226,0.81675,2448.1,2448.0,2.0404]
[1751443663531,26.02475,2448.1,2448.0,42.8404]
[1751443664424,25.208,2448.1,2448.0,42.8404]
[1751443665519,58.734,2448.7,2448.0,49.58530128]
[1751443665825,58.734,2448.7,2448.6,2.0404]
[1751443666231,95.53,2448.7,2448.6,2.0404]
[1751443666429,95.53,2448.7,2448.6,3.4951]
[1751443667024,58.734,2448.7,2448.6,3.4951]
[1751443667428,95.661,2448.7,2448.6,3.4951]
[1751443667833,95.662,2448.7,2448.6,3.4951]
[1751443669131,95.67,2448.7,2448.6,3.4951]
[1751443669628,58.734,2448.7,2448.6,4.31169]
[1751443669827,95.663,2448.7,2448.6,4.31169]
[1751443670533,58.734,2448.7,2448.6,4.31169]
[1751443670729,0.81644,2449.1,2448.6,4.31169]
[1751443670730,0.81641,2449.2,2448.8,0.8165]
[1751443670937,12.53637,2449.3,2449.2,2.0404]
[1751443671132,37.73537,2449.3,2449.2,2.0404]
[1751443671331,37.73537,2449.3,2449.0,0.81645]
[1751443671635,0.81639,2449.2,2449.1,3.4804]
[1751443672034,37.73537,2449.3,2449.1,3.4804]
[1751443672335,0.81634,2449.4,2449.2,2.0404]
[1751443672534,58.762,2449.6,2449.3,2.0404]
[1751443672736,37.74231,2449.5,2449.3,2.0404]
[1751443673031,37.74231,2449.5,2449.3,3.4929]
[1751443673629,12.53731,2449.5,2449.3,3.4929]
[1751443673823,25.205,2449.4,2449.3,3.4929]
[1751443674224,26.01632,2449.4,2449.3,3.4929]
[1751443674440,11.721,2449.5,2449.3,4.30925]
[1751443674728,58.762,2449.6,2449.5,0.81629]
[1751443674934,58.762,2449.6,2449.5,2.0404]
[1751443675130,95.678,2449.6,2449.5,4.21769]
[1751443675333,96.49425,2449.6,2449.5,44.2014]
[1751443676334,95.678,2449.6,2449.5,45.01769]
[1751443676731,95.678,2449.6,2449.5,44.2014]
[1751443676929,95.671,2449.6,2449.5,44.2014]
[1751443677329,96.48725,2449.6,2449.5,44.2014]
[1751443677833,96.48725,2449.6,2449.5,40.8]
[1751443680431,96.48725,2449.6,2449.5,41.61629]
[1751443681337,96.48725,2449.6,2449.5,43.65669]
[1751443681738,96.48725,2449.6,2449.5,42.8404]
[1751443682339,96.48725,2449.6,2449.5,44.98609]
[1751443682539,58.762,2449.6,2449.5,44.98609]
[1751443682935,83.941,2449.6,2449.5,50.39670522]
[1751443684036,83.94,2449.6,2449.5,50.39670522]